bitfinex/quotes_ETHUSD_20250403
["timestamp","ask_amount","ask_price","bid_price","bid_amount"]
[1743702550413,5.65438714,1777.7,1777.6,0.30231866]
[1743702551449,5.65438714,1777.7,1777.6,0.30232055]
[1743702551450,0.02914714,1777.7,1777.6,0.30232055]
[1743702552579,0.02914714,1777.7,1777.6,5.92788055]
[1743702552860,0.02914714,1777.7,1777.6,6.10376197]
[1743702553156,0.02914714,1777.7,1777.6,8.06791317]
[1743702554163,0.02914714,1777.7,1777.6,8.61791317]
[1743702554619,0.02914714,1777.7,1777.6,8.06791317]
[1743702554820,0.02914714,1777.7,1777.6,6.89496197]
[1743702557081,0.02914714,1777.7,1777.6,6.95121165]
[1743702557298,0.02914714,1777.7,1777.6,6.89496197]
[1743702558601,0.02914714,1777.7,1777.6,6.95121184]
[1743702558804,0.02914714,1777.7,1777.6,7.50121184]
[1743702558968,0.02914714,1777.7,1777.6,8.81390802]
[1743702559164,0.02914714,1777.7,1777.6,8.75765815]
[1743702561905,0.02914714,1777.7,1777.6,14.35565815]
[1743702564020,7.14e-06,1777.7,1777.6,17.35565815]
[1743702564198,5.80043127,1778.3,1778.2,5.62366]
[1743702564511,3.7541,1778.5,1778.2,11.37014339]
[1743702564674,3.7541,1778.5,1778.2,5.74648339]
[1743702564875,11.45680313,1778.5,1778.2,0.12296339]
[1743702565070,5.62312,1778.4,1778.2,0.12296339]
[1743702565271,5.62312,1778.4,1778.0,16.84644]
[1743702565580,5.62312,1778.4,1778.3,0.17588331]
[1743702565785,11.45680313,1778.5,1778.3,0.2988467]
[1743702565786,14.99971,1778.5,1778.3,0.2988467]
[1743702566187,5.62303,1778.4,1778.3,0.2988467]
[1743702566821,5.62303,1778.4,1778.3,0.12296339]
[1743702567583,5.62334,1778.3,1778.2,0.17588331]
[1743702567783,5.62334,1778.3,1778.2,0.2988467]
[1743702569712,5.62334,1778.3,1778.2,0.12296339]
[1743702570283,6.42663,1778.4,1778.2,0.12296339]
[1743702570614,3.0,1778.5,1778.2,5.74652339]
[1743702571013,17.85391127,1778.6,1778.3,0.17588331]
[1743702571385,17.85391127,1778.6,1778.4,0.12296339]
[1743702571585,17.85381127,1778.6,1778.4,0.12296339]
[1743702571926,17.85381127,1778.6,1778.3,0.17588331]
[1743702572093,17.85381127,1778.6,1778.4,0.12296339]
[1743702572720,5.62271,1778.5,1778.4,0.12296339]
[1743702576318,12.23123127,1778.6,1778.4,0.12296339]
[1743702576688,12.23123127,1778.6,1778.3,0.17588331]
[1743702577627,5.62282,1778.5,1778.3,0.17588331]
[1743702577818,12.23123127,1778.6,1778.4,0.12159897]
[1743702578019,17.85381127,1778.6,1778.4,0.12159897]
[1743702578223,5.62271,1778.5,1778.4,0.12159897]
[1743702579623,13.02561446,1778.5,1778.4,0.12159897]
[1743702579830,13.02561446,1778.5,1778.2,0.17588331]
[1743702580033,11.42357127,1778.4,1778.3,0.12029669]
[1743702580327,11.42357127,1778.4,1778.2,0.17588331]
[1743702580328,5.62334,1778.3,1778.2,0.17588331]
[1743702580496,17.85304127,1778.4,1778.2,0.17588331]
[1743702580691,15.24003584,1778.4,1778.2,0.29630402]
[1743702580929,20.86329584,1778.4,1778.2,0.12042071]
[1743702581142,5.80043127,1778.4,1778.2,0.12042071]
[1743702581524,11.42349127,1778.4,1778.2,0.12042071]
[1743702581719,6.44844,1778.3,1778.2,0.12042071]
[1743702581914,0.8251,1778.3,1778.2,0.12042071]
[1743702582110,6.44844,1778.3,1778.2,0.12042071]
[1743702582316,8.23563313,1778.3,1778.2,0.12042071]
[1743702582519,5.62366,1778.2,1778.1,0.17581739]
[1743702583011,6.39006,1778.2,1778.1,0.17581739]
[1743702584143,5.62439,1778.0,1777.8,0.17584472]
[1743702584864,5.62439,1778.0,1777.9,0.17584472]
[1743702585053,14.0899853,1778.0,1777.9,0.17584472]
[1743702585221,17.0899853,1778.0,1777.9,0.17584472]
[1743702585416,25.3467753,1778.0,1777.9,0.17584472]
[1743702585750,25.9371473,1778.0,1777.9,4.72e-06]
[1743702586160,25.9371473,1778.0,1777.1,5.67703]
[1743702586161,5.62621,1777.4,1777.1,5.67703]
[1743702586364,11.42664127,1777.4,1777.1,6.890006]
[1743702587254,11.42664127,1777.4,1777.1,7.06591572]
[1743702587455,5.80043127,1777.4,1777.1,11.47992972]
[1743702587642,5.80043127,1777.4,1777.3,6.42871]
[1743702588767,5.80043127,1777.4,1777.3,6.60461972]
[1743702590747,17.77694127,1777.9,1777.5,5.62586]
[1743702590945,5.62495,1777.8,1777.5,5.62586]
[1743702591144,18.20154122,1777.9,1777.5,11.25158]
[1743702591546,23.40175127,1777.9,1777.5,5.62572]
[1743702591766,5.62502,1777.8,1777.5,5.62572]
[1743702591958,11.25013,1777.8,1777.4,5.80205972]
[1743702592157,5.62533,1777.7,1777.4,5.80205972]
[1743702592872,5.62502,1777.8,1777.4,11.42806972]
[1743702593170,5.62502,1777.8,1777.4,5.80198972]
[1743702593372,5.62533,1777.7,1777.4,0.17590972]
[1743702593874,5.62533,1777.7,1777.4,5.80206972]
[1743702594175,6.35336759,1777.8,1777.4,11.25221]
[1743702594474,11.97845759,1777.8,1777.4,5.62605]
[1743702594774,5.80043127,1777.7,1777.4,5.62605]
[1743702595176,11.42577127,1777.7,1777.4,5.62605]
[1743702595342,7.57834516,1777.7,1777.4,5.62605]
[1743702595544,5.80043127,1777.7,1777.4,5.62605]
[1743702595744,11.42569127,1777.7,1777.4,5.62605]
[1743702596154,11.42569127,1777.7,1777.5,0.119753]
[1743702597781,17.05114127,1777.7,1777.5,0.119753]
[1743702597980,17.05114127,1777.7,1777.6,0.10958274]
[1743702598183,13.20364016,1777.7,1777.6,0.10958274]
[1743702598479,5.80043127,1777.7,1777.6,0.10958274]
[1743702598685,5.80043127,1777.7,1777.4,5.62613]
[1743702598985,5.80043127,1777.7,1777.4,11.25226]
[1743702599183,11.42578127,1777.7,1777.5,0.10958274]
[1743702599386,0.58004313,1777.6,1777.5,0.10958274]
[1743702600085,1.40034313,1777.6,1777.5,0.10958274]
[1743702600257,5.80043127,1777.7,1777.5,0.10958274]
[1743702600463,0.02914952,1777.6,1777.5,0.10958274]
[1743702600663,0.02914952,1777.6,1777.3,11.25274]
[1743702600967,0.02914952,1777.6,1777.5,0.10958274]
[1743702601190,0.02914952,1777.6,1777.3,5.62636]
[1743702601373,0.02914952,1777.6,1777.5,0.10958274]
[1743702601673,5.65470952,1777.6,1777.5,0.10958274]
[1743702601869,0.02914952,1777.6,1777.5,0.10958274]
[1743702603086,0.02914952,1777.6,1777.5,5.73545274]
[1743702603276,0.02914952,1777.6,1777.5,0.10958274]
[1743702603701,0.02914952,1777.6,1777.5,0.28545339]
[1743702604709,0.02914952,1777.6,1777.5,0.10958274]
[1743702606074,0.02914952,1777.6,1777.5,7.70628592]
[1743702607090,0.02914952,1777.6,1777.5,0.28545339]
[1743702607290,0.81944952,1777.6,1777.5,0.28545339]
[1743702607499,6.44500952,1777.6,1777.5,0.28545339]
[1743702607698,0.81944952,1777.6,1777.5,0.28545339]
[1743702607878,6.44500952,1777.6,1777.5,0.28545339]
[1743702608200,8.2320906,1777.6,1777.5,0.10958274]
[1743702609179,5.62619,1777.4,1777.3,0.35174906]
[1743702609415,16.2938316,1777.4,1777.3,0.35174906]
[1743702609576,25.70498112,1777.4,1777.3,0.35174906]
[1743702609777,28.83808023,1777.4,1777.3,0.35174906]
[1743702609974,67.42085523,1777.4,1777.3,0.35174906]
[1743702610175,53.14494023,1777.4,1777.3,0.35174906]
[1743702610378,38.01759923,1777.4,1777.3,0.35174906]
[1743702610681,5.62682,1777.2,1777.1,0.05]
[1743702610880,11.91937633,1777.2,1777.1,0.05]
[1743702611102,11.94852585,1777.2,1777.1,0.05]
[1743702611525,12.37378684,1777.2,1777.1,0.05]
[1743702611733,16.18478684,1777.2,1777.1,0.05]
[1743702612336,21.98521811,1777.2,1777.1,0.05]
[1743702613395,45.66307711,1777.2,1777.1,0.05]
[1743702613633,44.21868511,1777.2,1777.1,0.05]
[1743702614228,14.32552033,1776.7,1776.6,0.17587841]
[1743702614539,14.32552033,1776.7,1776.5,0.17598877]
[1743702614540,8.62872,1776.6,1776.5,0.17598877]
[1743702614892,8.65786952,1776.6,1776.5,0.17598877]
[1743702616115,8.65786952,1776.6,1776.2,0.35186718]
[1743702616298,11.37953127,1776.5,1776.2,0.35186718]
[1743702616708,0.02914952,1776.4,1776.2,0.35186718]
[1743702617225,0.02914952,1776.4,1776.2,0.17598877]
[1743702617427,0.02914952,1776.4,1776.2,5.80590877]
[1743702617633,0.02914952,1776.4,1776.3,5.62967]
[1743702618229,0.02914952,1776.4,1776.2,5.62987]
[1743702618603,0.02914952,1776.4,1776.3,6.39127]
[1743702618815,0.02914952,1776.4,1776.3,6.94127]
[1743702619239,0.02914952,1776.4,1776.3,6.39127]
[1743702619429,0.02914952,1776.4,1776.3,6.49937072]
[1743702622452,0.02914952,1776.4,1776.3,0.10810072]
[1743702622642,1.1700136,1776.4,1776.3,0.10810072]
[1743702622943,1.1700136,1776.4,1776.1,12.10632]
[1743702623137,1.1700136,1776.4,1776.3,0.11516864]
[1743702623343,12.4288936,1776.4,1776.1,0.05]
[1743702623550,11.28839033,1776.3,1776.1,0.05]
[1743702623837,13.09717172,1776.3,1776.1,0.05]
[1743702624042,0.02914952,1776.2,1776.1,0.05]
[1743702624245,5.77958079,1776.2,1776.1,0.05]
[1743702625941,5.77958079,1776.2,1776.1,5.68031]
[1743702626112,5.77958079,1776.2,1776.1,5.79529253]
[1743702627282,5.77958079,1776.2,1776.1,7.73507078]
[1743702627866,5.77958079,1776.2,1776.1,7.91107414]
[1743702628566,5.77958079,1776.2,1776.1,8.46107414]
[1743702629751,5.77958079,1776.2,1776.1,11.63705313]
[1743702629955,0.02914952,1776.2,1776.1,11.63705313]
[1743702630971,0.02914952,1776.2,1776.1,9.94447488]
[1743702631163,0.02914952,1776.2,1776.1,10.00077222]
[1743702631739,0.02914952,1776.2,1776.1,10.16758684]
[1743702632495,0.02914952,1776.2,1776.1,10.1112895]
[1743702632663,0.02914952,1776.2,1776.1,7.1112895]
[1743702632855,0.02914952,1776.2,1776.1,6.3140895]
[1743702633667,0.02914952,1776.2,1776.1,0.6837795]
[1743702633875,0.02914952,1776.2,1776.1,6.13811051]
[1743702634442,0.02914952,1776.2,1776.1,5.96210715]
[1743702636478,0.02914952,1776.2,1776.1,0.50779059]
[1743702636852,1.37373247,1776.2,1776.1,0.50779059]
[1743702637053,0.80784952,1776.2,1776.1,0.50779059]
[1743702637652,0.80784952,1776.2,1776.1,5.96210715]
[1743702637852,0.80784952,1776.2,1776.1,0.33179715]
[1743702638364,0.02914952,1776.2,1776.1,0.5078254]
[1743702639481,0.02914952,1776.2,1776.1,6.1381354]
[1743702639885,0.02914952,1776.2,1776.1,6.31412884]
[1743702640088,0.02914952,1776.2,1776.1,6.31326026]
[1743702647261,0.02914952,1776.2,1776.1,7.06426026]
[1743702647462,0.02914952,1776.2,1776.1,14.46193285]
[1743702647775,0.02914952,1776.2,1776.1,14.40563329]
[1743702659667,0.02914952,1776.2,1776.1,19.27284362]
[1743702660394,0.02914952,1776.2,1776.1,14.40563329]
[1743702660596,0.02914952,1776.2,1776.1,6.31326026]
[1743702660816,0.02914952,1776.2,1776.1,0.68295026]
[1743702661108,0.83504952,1776.2,1776.1,0.68295026]
[1743702661322,0.83504952,1776.2,1776.1,0.50695682]
[1743702662628,6.46503952,1776.2,1776.1,0.50695682]
[1743702662829,2.6195756,1776.2,1776.1,0.50695682]
[1743702663235,0.83504952,1776.2,1776.1,6.13726682]
[1743702663406,0.83504952,1776.2,1776.1,0.50695682]
[1743702664227,6.46503952,1776.2,1776.1,0.50695682]
[1743702664898,6.46503952,1776.2,1776.1,0.33092857]
[1743702665932,17.08268112,1776.2,1776.1,0.33092857]
[1743702666142,19.39646442,1776.2,1776.1,0.33092857]
[1743702666519,22.39646442,1776.2,1776.1,0.33092857]
[1743702667230,22.39646442,1776.2,1776.1,0.05]
[1743702668003,22.39646442,1776.2,1776.1,0.3087058]
[1743702668203,22.39646442,1776.2,1776.1,0.05]
[1743702669459,6.42379,1775.6,1775.5,0.18612926]
[1743702669748,17.0414316,1775.6,1775.5,0.01010101]
[1743702669921,17.0997235,1775.6,1775.5,0.26880681]
[1743702670119,6.60062317,1775.6,1775.5,0.26880681]
[1743702670831,7.02971009,1775.6,1775.5,0.26880681]
[1743702671951,6.23781009,1775.6,1775.5,0.26880681]
[1743702675656,8.00419166,1775.6,1775.5,0.26880681]
[1743702675814,18.50329199,1775.6,1775.5,0.26880681]
[1743702676253,13.63608166,1775.6,1775.5,0.26880681]
[1743702677748,8.00419166,1775.6,1775.5,0.26880681]
[1743702678068,5.80872317,1775.6,1775.5,0.26880681]
[1743702678264,5.80872317,1775.6,1775.5,5.90101681]
[1743702679163,5.80872317,1775.6,1775.5,0.26880681]
[1743702679563,6.62662317,1775.6,1775.5,0.26880681]
[1743702680041,12.25851317,1775.6,1775.5,0.26880681]
[1743702680241,8.41564549,1775.6,1775.5,0.26880681]
[1743702680441,6.62662317,1775.6,1775.5,0.26880681]
[1743702680661,6.62662317,1775.6,1775.5,0.01010101]
[1743702680865,6.62662317,1775.6,1775.5,0.27456706]
[1743702681162,15.25851317,1775.6,1775.5,0.27456706]
[1743702681367,20.1257235,1775.6,1775.5,0.27456706]
[1743702681565,22.64056685,1775.6,1775.5,0.27456706]
[1743702681768,22.64056685,1775.6,1775.5,0.01010101]
[1743702683233,5.80872317,1775.6,1775.5,0.01010101]
[1743702683436,0.0582919,1775.6,1775.5,6.43931101]
[1743702683660,0.0582919,1775.6,1775.5,17.50883501]
[1743702683967,0.0582919,1775.6,1775.5,17.72336977]
[1743702684357,0.0582919,1775.6,1775.5,20.72336977]
[1743702684556,0.0582919,1775.6,1775.5,23.92218475]
[1743702684761,1.9e-06,1775.6,1775.5,23.92218475]
[1743702685433,6.52933127,1776.5,1776.1,5.6301]
[1743702685639,12.15839127,1776.5,1776.2,5.893768]
[1743702685870,12.58877458,1776.5,1776.2,0.263908]
[1743702686093,5.62941,1776.4,1776.2,0.263908]
[1743702686250,20.0309116,1776.3,1776.2,0.263908]
[1743702686482,5.63095,1775.9,1775.6,6.44108]
[1743702686788,5.63095,1775.9,1775.7,0.26204986]
[1743702687165,12.14939127,1776.0,1775.6,5.68804228]
[1743702687365,17.78027127,1776.0,1775.7,0.26204986]
[1743702687588,12.14939127,1776.0,1775.7,5.63143]
[1743702687899,11.38109127,1776.0,1775.8,0.26204986]
[1743702688495,17.01202127,1776.0,1775.8,0.26204986]
[1743702688693,11.38109127,1776.0,1775.6,6.84428133]
[1743702688862,11.38109127,1776.0,1775.7,0.26204986]
[1743702689063,11.38109127,1776.0,1775.6,6.9005936]
[1743702689263,11.38109127,1776.0,1775.7,0.26204986]
[1743702689466,5.75043127,1776.0,1775.7,5.63157]
[1743702689763,5.75043127,1776.0,1775.8,6.71880205]
[1743702689958,5.75043127,1776.0,1775.8,0.26204986]
[1743702690187,12.16126127,1776.0,1775.8,0.26204986]
[1743702690386,12.16126127,1776.0,1775.8,0.43810814]
[1743702690583,6.53063127,1776.0,1775.8,0.17605828]
[1743702690791,5.75043127,1776.0,1775.9,0.26328855]
[1743702692398,5.75043127,1776.0,1775.8,5.63111]
[1743702692566,5.75043127,1776.0,1775.9,0.26328855]
[1743702694311,5.75043127,1776.0,1775.9,1.65043423]
[1743702694816,5.75043127,1776.0,1775.9,7.28137423]
[1743702695614,5.75043127,1776.0,1775.9,7.83137423]
[1743702695786,5.75043127,1776.0,1775.9,8.00743251]
[1743702696270,5.75043127,1776.0,1775.9,0.43934683]
[1743702697170,5.75043127,1776.0,1775.9,0.26328855]
[1743702698769,5.75043127,1776.0,1775.8,5.63123]
[1743702698966,5.75043127,1776.0,1775.9,0.26186397]
[1743702700703,5.75043127,1776.0,1775.9,0.4379012]
[1743702701430,5.75043127,1776.0,1775.9,6.0688412]
[1743702702128,5.75043127,1776.0,1775.9,8.01563832]
[1743702702333,5.75043127,1776.0,1775.9,8.07194217]
[1743702702517,5.75043127,1776.0,1775.9,8.01563832]
[1743702702718,5.75043127,1776.0,1775.9,8.07194126]
[1743702703436,5.75043127,1776.3,1776.0,5.63034]
[1743702703632,5.75043127,1776.3,1776.0,11.2607]
[1743702703806,5.75043127,1776.3,1776.1,5.63029]
[1743702704006,5.75043127,1776.3,1776.1,5.89215397]
[1743702705022,5.75043127,1776.3,1776.1,0.26186397]
[1743702705336,9.44939,1776.2,1776.1,0.26186397]
[1743702705831,15.04239,1776.2,1776.1,0.26186397]
[1743702706024,5.6305,1776.1,1775.7,6.44613]
[1743702706225,5.63063,1776.0,1775.7,12.0776]
[1743702706426,5.63063,1776.0,1775.7,6.44613]
[1743702706621,5.63174,1775.7,1775.5,0.01010101]
[1743702706822,6.40504,1775.7,1775.5,0.01010101]
[1743702707132,0.7733,1775.7,1775.5,0.01010101]
[1743702707634,6.42521,1775.8,1775.5,5.64229101]
[1743702707826,10.49825033,1775.9,1775.5,5.64229101]
[1743702708023,16.12938033,1775.9,1775.5,5.64229101]
[1743702708228,5.63128,1775.8,1775.5,5.64229101]
[1743702708402,5.63128,1775.8,1775.5,11.27439101]
[1743702708835,5.75043127,1776.0,1775.8,5.63118]
[1743702709403,5.75043127,1776.0,1775.8,11.26231]
[1743702709844,5.75043127,1776.0,1775.8,5.63113]
[1743702710139,5.75043127,1776.0,1775.8,11.26228]
[1743702710538,17.61345,1776.2,1775.8,12.388458]
[1743702710840,11.98333,1776.2,1775.8,12.388488]
[1743702711441,11.98333,1776.2,1775.8,12.388478]
[1743702711617,11.98333,1776.2,1775.8,6.757328]
[1743702711816,5.63035,1776.1,1775.8,6.757328]
[1743702712016,5.63035,1776.1,1775.8,12.388438]
[1743702712340,11.26086,1776.1,1775.8,1.126228]
[1743702712526,11.26084,1776.1,1775.9,0.17608196]
[1743702712715,5.63035,1776.1,1775.9,0.17608196]
[1743702713319,12.40555606,1776.2,1775.9,5.80701196]
[1743702713524,12.40555606,1776.2,1775.9,6.62521196]
[1743702713720,12.40555606,1776.2,1776.0,0.17608196]
[1743702714449,5.63031,1776.1,1776.0,0.17608196]
[1743702714654,5.63031,1776.1,1775.8,5.6311]
[1743702714956,5.63072,1776.0,1775.6,11.81368]
[1743702715259,11.26156,1776.0,1775.7,0.24059933]
[1743702715442,11.26156,1776.0,1775.7,0.41665245]
[1743702715443,5.63072,1776.0,1775.7,0.41665245]
[1743702715648,5.63072,1776.0,1775.7,5.80757312]
[1743702715961,12.40556606,1776.2,1775.9,5.63091]
[1743702716116,3.0,1776.2,1775.9,11.2617]
[1743702716316,3.0,1776.2,1776.0,0.24097097]
[1743702717465,3.0,1776.2,1776.0,5.87159097]
[1743702717665,12.62862189,1776.3,1776.0,5.87159097]
[1743702717863,5.63023,1776.2,1776.0,0.24097097]
[1743702718070,11.26053,1776.2,1776.0,0.24097097]
[1743702718359,11.26053,1776.2,1776.1,0.24028967]
[1743702718565,5.63038,1776.1,1775.8,6.41646]
[1743702718723,5.63038,1776.1,1775.9,0.24028967]
[1743702718923,5.63023,1776.2,1775.9,5.87116967]
[1743702719161,5.63023,1776.2,1775.9,6.04721139]
[1743702719829,11.80120189,1776.3,1776.0,5.63052]
[1743702720368,0.02914429,1776.2,1776.1,6.64688967]
[1743702720543,0.02914429,1776.2,1776.1,8.05067036]
[1743702720939,0.02914429,1776.2,1776.1,1.64407036]
[1743702721272,0.02914429,1776.2,1776.1,8.65707727]
[1743702721485,0.02914429,1776.2,1776.1,8.60078036]
[1743702722665,0.02914429,1776.2,1776.1,8.65707158]
[1743702722869,0.02914429,1776.2,1776.1,8.60078036]
[1743702723765,0.02914429,1776.2,1776.1,8.65707163]
[1743702723971,0.02914429,1776.2,1776.1,8.60078036]
[1743702724498,0.02914429,1776.2,1776.1,8.65707161]
[1743702724867,4.29e-06,1776.2,1776.1,11.65707161]
[1743702725062,6.40552,1777.0,1776.7,5.62837]
[1743702725452,12.03316,1777.0,1776.8,0.2389892]
[1743702725793,0.7779,1777.0,1776.6,0.7992]
[1743702725965,0.7779,1777.0,1776.9,0.2389892]
[1743702726165,0.7779,1777.0,1776.7,5.62825]
[1743702726377,0.7779,1777.0,1776.8,0.2389892]
[1743702727592,5.75043127,1777.1,1776.8,5.8669492]
[1743702727764,3.0,1777.2,1776.9,5.62763]
[1743702727951,12.04932,1777.3,1776.9,5.62763]
[1743702728149,5.62683,1777.2,1777.0,0.2389892]
[1743702728363,6.42262,1777.3,1777.0,0.2389892]
[1743702728573,7.364882,1777.3,1777.0,0.2389892]
[1743702728783,5.62692,1777.2,1777.0,0.2389892]
[1743702728960,5.62714,1777.1,1777.0,0.2389892]
[1743702730162,11.67030504,1777.2,1776.8,5.62796]
[1743702730363,0.7961,1777.3,1777.0,5.62724]
[1743702730553,12.15335127,1777.5,1777.1,5.62712]
[1743702730755,5.75043127,1777.5,1777.2,6.38056]
[1743702730955,5.75043127,1777.5,1777.3,5.62647]
[1743702731181,5.75043127,1777.5,1777.4,0.2389892]
[1743702731459,5.62725,1777.1,1776.8,6.62558602]
[1743702731658,12.20608127,1777.1,1776.7,11.39321602]
[1743702731858,12.20608127,1777.1,1776.9,0.22778521]
[1743702732067,12.20608127,1777.1,1776.8,5.85544214]
[1743702732389,12.20608127,1777.1,1776.7,11.39320602]
[1743702732698,6.57883127,1777.1,1776.8,5.85534214]
[1743702732891,12.20608127,1777.1,1776.8,5.85534214]
[1743702733186,5.62751,1777.0,1776.8,0.22735214]
[1743702733554,11.25516,1777.0,1776.8,0.22735214]
[1743702733754,5.62751,1777.0,1776.8,0.22735214]
[1743702733973,5.62751,1777.0,1776.6,12.09026]
[1743702734191,5.62751,1777.0,1776.7,5.85633083]
[1743702736290,12.20601127,1777.1,1776.7,11.48458083]
[1743702736503,12.20601127,1777.1,1776.8,5.62788]
[1743702736703,5.75043127,1777.1,1777.0,6.43416]
[1743702737205,5.75043127,1777.5,1777.3,5.62647]
[1743702737502,5.75043127,1777.5,1777.3,5.62636]
[1743702737681,5.75043127,1777.5,1777.4,0.22834208]
[1743702738197,5.75043127,1777.5,1777.3,5.62636]
[1743702738395,5.75043127,1777.5,1777.4,0.22834208]
[1743702738595,5.75043127,1777.5,1777.3,11.25273]
[1743702738798,5.75043127,1777.5,1777.4,6.63043208]
[1743702738999,5.75043127,1777.8,1777.5,5.6256]
[1743702739512,11.37539127,1777.8,1777.4,6.40203]
[1743702739813,5.62535,1777.7,1777.4,6.40203]
[1743702740015,11.37539127,1777.8,1777.5,0.22586756]
[1743702740379,11.37539127,1777.8,1777.5,5.85158756]
[1743702740575,0.05,1777.9,1777.7,5.62524]
[1743702740781,0.05,1777.9,1777.8,6.45086625]
[1743702740981,0.05,1777.9,1777.8,0.99439255]
[1743702741275,6.43471,1777.9,1777.8,0.22469255]
[1743702741515,13.265501,1777.9,1777.5,6.39545]
[1743702741719,5.62495,1777.8,1777.6,0.22456888]
[1743702743209,11.37538127,1777.8,1777.6,0.22456888]
[1743702743614,11.37538127,1777.8,1777.4,5.6259]
[1743702743791,11.37538127,1777.8,1777.7,0.21881798]
[1743702743987,13.2769855,1777.8,1777.4,11.25197]
[1743702744192,13.2769855,1777.8,1777.5,5.84466798]
[1743702744896,5.75043127,1777.8,1777.5,5.90090461]
[1743702745198,5.75043127,1777.8,1777.6,5.62545]
[1743702745591,5.75043127,1777.8,1777.7,0.21881798]
[1743702745791,5.75043127,1777.8,1777.6,5.62545]
[1743702746093,5.75043127,1777.8,1777.7,0.21881798]
[1743702746327,5.75043127,1777.8,1777.6,5.62545]
[1743702746550,5.75043127,1777.8,1777.7,0.21881798]
[1743702746707,5.75043127,1777.8,1777.6,5.62545]
[1743702747040,5.75043127,1777.8,1777.7,0.21881798]
[1743702747440,5.75043127,1777.8,1777.5,5.62572]
[1743702747618,11.37537127,1777.8,1777.7,0.21881798]
[1743702747804,5.75043127,1777.8,1777.5,5.62572]
[1743702748012,5.75043127,1777.8,1777.6,0.21881798]
[1743702749542,5.75043127,1777.8,1777.6,5.84433798]
[1743702750808,0.05,1777.9,1777.7,5.62524]
[1743702751022,0.05,1777.9,1777.8,6.17492]
[1743702751346,0.05,1777.9,1777.8,7.17283798]
[1743702752467,0.05,1777.9,1777.8,7.34865986]
[1743702752667,0.05,1777.9,1777.8,8.64604985]
[1743702754130,0.05,1777.9,1777.8,7.31694985]
[1743702754330,0.05,1777.9,1777.8,0.39463986]
[1743702755336,0.05,1777.9,1777.8,0.21881798]
[1743702756342,0.05,1777.9,1777.8,5.84373798]
[1743702758072,0.05,1777.9,1777.8,0.3946614]
[1743702758273,0.05,1777.9,1777.8,6.5695814]
[1743702758473,0.05,1777.9,1777.8,0.3946614]
[1743702758646,0.05,1777.9,1777.8,6.0195814]
[1743702758847,0.05,1777.9,1777.8,0.3946614]
[1743702761447,0.05,1777.9,1777.8,0.21881798]
[1743702761986,0.05,1777.9,1777.5,0.17584342]
[1743702761987,0.7707,1777.8,1777.5,0.17584342]
[1743702762156,17.0135616,1777.8,1777.6,0.19682324]
[1743702762670,5.62524,1777.7,1777.6,0.19682324]
[1743702763391,5.62524,1777.7,1777.6,0.19719407]
[1743702763555,5.62524,1777.7,1777.4,5.80191342]
[1743702763754,5.62524,1777.7,1777.5,0.19719407]
[1743702764059,5.62524,1777.7,1777.5,0.37303749]
[1743702765596,7.88911716,1777.7,1777.5,0.37303749]
[1743702765882,13.51457716,1777.7,1777.5,0.37303749]
[1743702766089,7.88911716,1777.7,1777.5,0.37303749]
[1743702766385,0.832,1777.6,1777.5,0.19719407]
[1743702766554,0.832,1777.6,1777.4,5.62608]
[1743702766755,0.832,1777.6,1777.5,0.19719407]
[1743702767690,11.37538127,1777.8,1777.5,5.82295407]
[1743702768393,5.75043127,1777.8,1777.6,11.2509]
[1743702768689,8.75043127,1777.8,1777.7,0.20034632]
[1743702768882,14.37535127,1777.8,1777.7,0.20034632]
[1743702769056,16.521267,1777.8,1777.6,0.17587919]
[1743702769257,11.25545033,1777.7,1777.6,0.17587919]
[1743702769464,14.25545033,1777.7,1777.6,0.17587919]
[1743702769669,13.49245033,1777.7,1777.6,0.17587919]
[1743702769869,14.24815033,1777.7,1777.6,0.17587919]
[1743702770052,5.62617,1777.5,1777.2,0.17587919]
[1743702770253,17.00277127,1777.5,1777.2,0.17587919]
[1743702771290,5.62622,1777.4,1777.2,0.17587919]
[1743702771592,5.62622,1777.4,1777.3,0.17587919]
[1743702772092,11.37660127,1777.5,1777.3,0.17587919]
[1743702772565,17.29928945,1777.5,1777.3,0.17587919]
[1743702772760,5.62651,1777.3,1777.2,0.17587919]
[1743702772961,20.0745516,1777.3,1777.2,0.17587919]
[1743702774189,5.62698,1777.2,1776.9,0.17587919]
[1743702774558,5.62717,1777.1,1776.9,0.17587919]
[1743702774970,5.62698,1777.2,1776.9,0.17587919]
[1743702775187,14.4480416,1777.3,1776.9,0.17587919]
[1743702775361,14.4480416,1777.3,1776.7,11.43244919]
[1743702775362,5.62725,1777.1,1776.7,11.43244919]
[1743702775989,5.62725,1777.1,1776.8,5.62809]
[1743702776193,5.62725,1777.1,1776.9,0.20182986]
[1743702776593,6.42186,1777.0,1776.9,0.20182986]
[1743702777061,0.7944,1777.0,1776.9,0.20182986]
[1743702778197,3.0,1777.1,1776.9,5.82959986]
[1743702780316,3.0,1777.1,1777.0,5.62746]
[1743702780772,3.0,1777.1,1777.0,5.83621643]
[1743702780972,5.75043127,1777.3,1777.1,5.62714]
[1743702781206,5.75043127,1777.3,1777.0,11.25472]
[1743702781371,5.62685,1777.2,1777.1,0.20875643]
[1743702781575,5.62685,1777.2,1776.9,11.25539]
[1743702781780,5.62685,1777.2,1777.0,0.20875643]
[1743702782321,11.37698127,1777.3,1777.0,0.20875643]
[1743702782513,5.75043127,1777.3,1777.0,11.46351643]
[1743702782715,5.75043127,1777.3,1777.0,5.83613643]
[1743702783013,11.37694127,1777.3,1777.0,5.83613643]
[1743702783586,5.75043127,1777.3,1777.0,5.83614643]
[1743702783817,5.75043127,1777.3,1777.1,6.38034]
[1743702784302,5.75043127,1777.3,1777.2,0.20875643]
[1743702785083,6.39573,1777.5,1777.2,5.62662]
[1743702785084,6.52023127,1777.5,1777.2,5.62662]
[1743702785284,6.52023127,1777.5,1777.2,11.46200643]
[1743702785583,3.0,1777.4,1777.2,5.83537643]
[1743702785777,7.86721033,1777.4,1777.2,0.20875643]
[1743702786008,13.49355033,1777.4,1777.2,0.20875643]
[1743702786215,13.49355033,1777.4,1777.0,11.31114897]
[1743702786418,13.49355033,1777.4,1777.1,0.20782855]
[1743702787316,19.11989033,1777.4,1777.1,0.20782855]
[1743702787823,13.49355033,1777.4,1777.1,5.83493855]
[1743702788184,7.86721033,1777.4,1777.1,0.20782855]
[1743702788516,4.86721033,1777.2,1777.1,0.20782855]
[1743702788932,5.75043127,1777.3,1777.1,0.20782855]
[1743702789516,5.75043127,1777.3,1777.1,0.79134341]
[1743702789692,5.75043127,1777.3,1777.1,6.41845341]
[1743702790326,5.75043127,1777.3,1777.1,6.59437439]
[1743702790731,5.75043127,1777.3,1777.1,0.96726439]